fUSD/lending_fUSD_20240301
["ID","MTS","AMOUNT","RATE_DAILY","PERIOD"]
[315921588,1709283048611,-714.99,0.00022068,2]
[315921589,1709283048620,-500.0,0.00022068,2]
[315921590,1709283048631,-500.0,0.00022068,2]
[315921591,1709283048640,-500.0,0.00022068,2]
[315921592,1709283048649,-500.0,0.00022068,2]
[315921593,1709283048658,-500.0,0.00022068,2]
[315921594,1709283048667,-792.46,0.00022068,2]
[315921595,1709283048676,-500.0,0.00022068,2]
[315921596,1709283048685,-500.0,0.00022068,2]
[315921597,1709283048694,-500.0,0.00022068,2]
[315921598,1709283048703,-500.0,0.00022068,2]
[315921599,1709283048713,-1373.46,0.00022068,2]
[315921600,1709283048721,-500.0,0.00022068,2]
[315921601,1709283048731,-545.20002118,0.00022068,2]
[315921602,1709283048739,-500.0,0.00022068,2]
[315921603,1709283048748,-500.0,0.00022068,2]
[315921604,1709283048758,-500.0,0.00022068,2]
[315921605,1709283048767,-1067.14,0.00022068,2]
[315921606,1709283048776,-500.0,0.00022068,2]
[315921607,1709283048785,-500.0,0.00022068,2]
[315921608,1709283048794,-500.0,0.00022068,2]
[315921609,1709283048803,-513.05,0.00022068,2]
[315921610,1709283048812,-500.0,0.00022068,2]
[315921611,1709283048823,-500.0,0.00022068,2]
[315921612,1709283048832,-500.0,0.00022068,2]
[315921613,1709283048841,-500.0,0.00022068,2]
[315921614,1709283048850,-500.0,0.00022068,2]
[315921615,1709283048859,-500.0,0.00022068,2]
[315921616,1709283048868,-722.08,0.00022068,2]
[315921617,1709283048877,-500.0,0.00022068,2]
[315921618,1709283048886,-500.0,0.00022068,2]
[315921619,1709283048896,-154.57636514,0.00022068,2]
[315921620,1709283048905,-500.0,0.00022068,2]
[315921621,1709283048914,-500.0,0.00022068,2]
[315921622,1709283048923,-1018.38,0.00022068,2]
[315921623,1709283048932,-601.09,0.00022068,2]
[315921624,1709283048941,-500.0,0.00022068,2]
[315921625,1709283048953,-500.0,0.00022068,2]
[315921626,1709283048962,-500.0,0.00022068,2]
[315921627,1709283048971,-500.0,0.00022068,2]
[315921628,1709283048980,-500.0,0.00022068,2]
[315921629,1709283048989,-500.0,0.00022068,2]
[315921630,1709283048999,-500.0,0.00022068,2]
[315921631,1709283049008,-593.08,0.00022068,2]
[315921632,1709283049017,-500.0,0.00022068,2]
[315921633,1709283049026,-500.0,0.00022068,2]
[315921634,1709283049036,-500.0,0.00022068,2]
[315921635,1709283049045,-500.0,0.00022068,2]
[315921636,1709283049054,-557.3,0.00022068,2]
[315921637,1709283049063,-500.0,0.00022068,2]
[315921638,1709283049071,-500.0,0.00022068,2]
[315921639,1709283049080,-500.0,0.00022068,2]
[315921640,1709283049089,-500.0,0.00022068,2]
[315921641,1709283049098,-500.0,0.00022068,2]
[315921642,1709283049108,-500.0,0.00022068,2]
[315921643,1709283049117,-500.0,0.00022068,2]
[315921644,1709283049126,-500.0,0.00022068,2]
[315921645,1709283049136,-460.78574717,0.00022068,2]
[315921646,1709283049145,-810.56,0.00022068,2]
[315921647,1709283049154,-500.0,0.00022068,2]
[315921648,1709283049163,-500.0,0.00022068,2]
[315921649,1709283049172,-803.69,0.00022068,2]
[315921650,1709283049181,-500.0,0.00022068,2]
[315921651,1709283049190,-500.0,0.00022068,2]
[315921652,1709283049203,-500.0,0.00022068,2]
[315921653,1709283049213,-878.22,0.00022068,2]
[315921654,1709283049222,-500.0,0.00022068,2]
[315921655,1709283049231,-858.39,0.00022068,2]
[315921656,1709283049241,-500.0,0.00022068,2]
[315921657,1709283049250,-500.0,0.00022068,2]
[315921658,1709283049259,-500.0,0.00022068,2]
[315921659,1709283049268,-500.0,0.00022068,2]
[315921660,1709283049277,-500.0,0.00022068,2]
[315921661,1709283049286,-571.87,0.00022068,2]
[315921662,1709283049295,-583.77,0.00022068,2]
[315921663,1709283049304,-500.0,0.00022068,2]
[315921664,1709283049313,-500.0,0.00022068,2]
[315921665,1709283049322,-500.0,0.00022068,2]
[315921666,1709283049331,-500.0,0.00022068,2]
[315921667,1709283049340,-500.0,0.00022068,2]
[315921668,1709283049349,-954.25,0.00022068,2]
[315921669,1709283049359,-321.71,0.00022068,2]
[315921670,1709283049369,-500.0,0.00022068,2]
[315921671,1709283049378,-500.0,0.00022068,2]
[315921672,1709283049387,-500.0,0.00022068,2]
[315921673,1709283049397,-500.0,0.00022068,2]
[315921674,1709283049406,-500.0,0.00022068,2]
[315921675,1709283049416,-500.0,0.00022068,2]
[315921676,1709283049425,-500.0,0.00022068,2]
[315921677,1709283049434,-500.0,0.00022068,2]
[315921678,1709283049443,-500.0,0.00022068,2]
[315921679,1709283049454,-500.0,0.00022068,2]
[315921680,1709283049464,-500.0,0.00022068,2]
[315921681,1709283049473,-535.9684123,0.00022068,2]
[315921682,1709283049482,-500.0,0.00022068,2]
[315921683,1709283049491,-500.0,0.00022068,2]
[315921684,1709283049501,-500.0,0.00022068,2]
[315921685,1709283049510,-873.63,0.00022068,2]
[315921686,1709283049519,-500.0,0.00022068,2]
[315921687,1709283049528,-500.0,0.00022068,2]
[315921688,1709283049537,-500.0,0.00022068,2]
[315921689,1709283049547,-500.0,0.00022068,2]
[315921690,1709283049556,-1099.28,0.00022068,2]
[315921691,1709283049565,-597.55,0.00022068,2]
[315921692,1709283049574,-500.0,0.00022068,2]
[315921693,1709283049583,-684.0,0.00022068,2]
[315921694,1709283049593,-603.43,0.00022068,2]
[315921695,1709283049603,-500.0,0.00022068,2]
[315921696,1709283049612,-500.0,0.00022068,2]
[315921697,1709283049621,-500.0,0.00022068,2]
[315921698,1709283049631,-946.4,0.00022068,2]
[315921699,1709283049640,-500.0,0.00022068,2]
[315921700,1709283049649,-1004.03,0.00022068,2]
[315921701,1709283049658,-500.0,0.00022068,2]
[315921702,1709283049667,-500.0,0.00022068,2]
[315921703,1709283049676,-500.0,0.00022068,2]
[315921704,1709283049685,-506.3,0.00022068,2]
[315921705,1709283049695,-500.0,0.00022068,2]
[315921706,1709283049705,-500.0,0.00022068,2]
[315921707,1709283049714,-500.0,0.00022068,2]
[315921708,1709283049722,-1135.62,0.00022068,2]
[315921709,1709283049731,-500.0,0.00022068,2]
[315921710,1709283049741,-500.0,0.00022068,2]
[315921711,1709283049750,-500.0,0.00022068,2]
[315921712,1709283049759,-500.0,0.00022068,2]
[315921713,1709283049768,-500.0,0.00022068,2]
[315921714,1709283049777,-500.0,0.00022068,2]
[315921715,1709283049786,-6259.6,0.00022068,2]
[315921716,1709283049797,-525.28,0.00022068,2]
[315921717,1709283049807,-721.84,0.00022068,2]
[315921718,1709283049816,-500.0,0.00022068,2]
[315921719,1709283049824,-500.0,0.00022068,2]
[315921720,1709283049834,-500.0,0.00022068,2]
[315921721,1709283049844,-500.0,0.00022068,2]
[315921722,1709283049853,-500.0,0.00022068,2]
[315921723,1709283049861,-529.56194108,0.00022068,2]
[315921724,1709283049870,-500.0,0.00022068,2]
[315921725,1709283049879,-500.0,0.00022068,2]
[315921726,1709283049888,-500.0,0.00022068,2]
[315921727,1709283049897,-2172.06,0.00022068,2]
[315921728,1709283049906,-500.0,0.00022068,2]
[315921729,1709283049915,-500.0,0.00022068,2]
[315921730,1709283049924,-500.0,0.00022068,2]
[315921731,1709283049933,-500.0,0.00022068,2]
[315921732,1709283049942,-658.47,0.00022068,2]
[315921733,1709283049954,-500.0,0.00022068,2]
[315921734,1709283049963,-538.25821018,0.00022068,2]
[315921735,1709283049971,-500.0,0.00022068,2]
[315921736,1709283049981,-500.0,0.00022068,2]
[315921737,1709283049991,-500.0,0.00022068,2]
[315921738,1709283050000,-500.0,0.00022068,2]
[315921739,1709283050010,-621.15,0.00022068,2]
[315921740,1709283050020,-500.0,0.00022068,2]
[315921741,1709283050030,-500.0,0.00022068,2]
[315921742,1709283050040,-500.0,0.00022068,2]
[315921743,1709283050050,-500.0,0.00022068,2]
[315921744,1709283050061,-500.0,0.00022068,2]
[315921745,1709283050071,-500.0,0.00022068,2]
[315921746,1709283050083,-500.0,0.00022068,2]
[315921747,1709283050094,-1245.68,0.00022068,2]
[315921748,1709283050104,-500.0,0.00022068,2]
[315921749,1709283050115,-500.0,0.00022068,2]
[315921750,1709283050126,-500.0,0.00022068,2]
[315921751,1709283050136,-500.0,0.00022068,2]
[315921752,1709283050146,-1365.06,0.00022068,2]
[315921753,1709283050156,-500.0,0.00022068,2]
[315921754,1709283050165,-500.0,0.00022068,2]
[315921755,1709283050174,-500.8,0.00022068,2]
[315921756,1709283050183,-500.0,0.00022068,2]
[315921757,1709283050193,-500.0,0.00022068,2]
[315921758,1709283050204,-500.0,0.00022068,2]
[315921759,1709283050215,-1321.94,0.00022068,2]
[315921760,1709283050225,-500.0,0.00022068,2]
[315921761,1709283050235,-500.0,0.00022068,2]
[315921762,1709283050244,-500.0,0.00022068,2]
[315921763,1709283050254,-500.0,0.00022068,2]
[315921764,1709283050263,-500.0,0.00022068,2]
[315921765,1709283050272,-500.0,0.00022068,2]
[315921766,1709283050281,-500.0,0.00022068,2]
[315921767,1709283050291,-500.0,0.00022068,2]
[315921768,1709283050300,-1012.51,0.00022068,2]
[315921769,1709283050309,-500.0,0.00022068,2]
[315921770,1709283050318,-500.0,0.00022068,2]
[315921771,1709283050327,-500.0,0.00022068,2]
[315921772,1709283050337,-500.0,0.00022068,2]
[315921773,1709283050346,-500.0,0.00022068,2]
[315921774,1709283050357,-500.0,0.00022068,2]
[315921775,1709283050367,-500.0,0.00022068,2]
[315921776,1709283050377,-500.0,0.00022068,2]
[315921777,1709283050388,-500.0,0.00022068,2]
[315921778,1709283050398,-500.0,0.00022068,2]
[315921779,1709283050409,-500.0,0.00022068,2]
[315921780,1709283050419,-500.0,0.00022068,2]
[315921781,1709283050428,-1538.04,0.00022068,2]
[315921782,1709283050438,-500.0,0.00022068,2]
[315921783,1709283050451,-500.0,0.00022068,2]
[315921784,1709283050460,-500.0,0.00022068,2]
[315921785,1709283050471,-500.0,0.00022068,2]
[315921786,1709283050481,-500.0,0.00022068,2]
[315921787,1709283050491,-500.0,0.00022068,2]
[315921788,1709283050500,-927.02,0.00022068,2]
[315921789,1709283050510,-500.0,0.00022068,2]
[315921790,1709283050519,-500.0,0.00022068,2]
[315921791,1709283050529,-500.0,0.00022068,2]
[315921792,1709283050538,-500.0,0.00022068,2]
[315921793,1709283050549,-544.42451416,0.00022068,2]
[315921794,1709283050558,-500.0,0.00022068,2]
[315921795,1709283050568,-500.0,0.00022068,2]
[315921796,1709283050578,-500.0,0.00022068,2]
[315921797,1709283050588,-500.0,0.00022068,2]
[315921798,1709283050598,-500.0,0.00022068,2]
[315921799,1709283050608,-500.0,0.00022068,2]
[315921800,1709283050618,-500.0,0.00022068,2]
[315921801,1709283050628,-500.0,0.00022068,2]
[315921802,1709283050638,-500.0,0.00022068,2]
[315921803,1709283050648,-500.0,0.00022068,2]
[315921804,1709283050659,-500.0,0.00022068,2]
[315921805,1709283050669,-500.0,0.00022068,2]
[315921806,1709283050679,-500.0,0.00022068,2]
[315921807,1709283050688,-510.64297621,0.00022068,2]
[315921808,1709283050701,-500.0,0.00022068,2]
[315921809,1709283050710,-500.0,0.00022068,2]
[315921810,1709283050720,-500.0,0.00022068,2]
[315921811,1709283050729,-500.0,0.00022068,2]
[315921812,1709283050738,-500.0,0.00022068,2]
[315921813,1709283050748,-500.0,0.00022068,2]
[315921814,1709283050758,-500.0,0.00022068,2]
[315921815,1709283050767,-500.0,0.00022068,2]
[315921816,1709283050776,-500.0,0.00022068,2]
[315921817,1709283050785,-500.0,0.00022068,2]
[315921818,1709283050796,-500.0,0.00022068,2]
[315921819,1709283050805,-500.0,0.00022068,2]
[315921820,1709283050817,-500.0,0.00022068,2]
[315921821,1709283050826,-500.0,0.00022068,2]
[315921822,1709283050836,-500.0,0.00022068,2]
[315921823,1709283050846,-324.44942251,0.00022068,2]
[315921824,1709283050855,-500.0,0.00022068,2]
[315921825,1709283050866,-500.0,0.00022068,2]
[315921826,1709283050876,-515.24139617,0.0002207,2]
[315921827,1709283050885,-508.07725107,0.0002207,2]
[315921828,1709283050895,-504.12901882,0.0002207,2]
[315921829,1709283050906,-550.46435564,0.0002207,2]
[315921830,1709283050915,-387.20708796,0.0002207,2]
[315921831,1709283050925,-496.90845914,0.0002207,2]
[315921832,1709283050935,-508.32319887,0.0002207,2]
[315921833,1709283050946,-196.68499495,0.0002207,2]
[315921834,1709283050956,-500.0,0.0002207,2]
[315921835,1709283050967,-155.08303359,0.0002207,2]
[315921836,1709283050977,-295.34912171,0.0002207,2]
[315921837,1709283050987,-520.44609555,0.0002207,2]
[315921838,1709283050997,-503.80549925,0.0002207,2]
[315921839,1709283051006,-619.3530111,0.0002207,2]
[315921840,1709283051016,-508.83310281,0.0002207,2]
[315921841,1709283051026,-503.4721737,0.0002207,2]
[315921842,1709283051037,-316.98297276,0.0002207,2]
[315921843,1709283051046,-500.0,0.0002207,2]
[315921844,1709283051056,-500.67069779,0.0002207,2]
[315921845,1709283051065,-500.0,0.0002207,2]
[315921846,1709283051075,-498.2437597,0.0002207,2]
[315921847,1709283051084,-250.02887319,0.0002207,2]
[315921848,1709283051094,-500.26313763,0.0002207,2]
[315921849,1709283051103,-231.48478635,0.0002207,2]
[315921850,1709283051112,-500.0,0.0002207,2]
[315921851,1709283051121,-500.0,0.0002207,2]
[315921852,1709283051131,-725.53,0.0002207,2]
[315921853,1709283051140,-674.96,0.0002207,2]
[315921854,1709283051149,-619.01,0.0002207,2]
[315921855,1709283051158,-683.52,0.0002207,2]
[315921856,1709283051167,-500.0,0.0002207,2]
[315921857,1709283051177,-500.0,0.0002207,2]
[315921858,1709283051186,-500.0,0.0002207,2]
[315921859,1709283051197,-500.0,0.0002207,2]
[315921860,1709283051206,-500.0,0.0002207,2]
[315921861,1709283051216,-500.0,0.0002207,2]
[315921862,1709283051225,-500.0,0.0002207,2]
[315921863,1709283051234,-500.0,0.0002207,2]
[315921864,1709283051244,-504.98,0.0002207,2]
[315921865,1709283051253,-500.0,0.0002207,2]
[315921866,1709283051262,-500.0,0.0002207,2]
[315921867,1709283051271,-500.0,0.0002207,2]
[315921868,1709283051280,-500.0,0.0002207,2]
[315921869,1709283051288,-500.0,0.0002207,2]
[315921870,1709283051297,-500.0,0.0002207,2]
[315921871,1709283051306,-500.0,0.0002207,2]
[315921872,1709283051315,-500.0,0.0002207,2]
[315921873,1709283051325,-500.0,0.0002207,2]
[315921874,1709283051334,-1137.2,0.0002207,2]
[315921875,1709283051343,-500.0,0.0002207,2]
[315921876,1709283051352,-500.0,0.0002207,2]
[315921877,1709283051361,-500.0,0.0002207,2]
[315921878,1709283051371,-851.44,0.0002207,2]
[315921879,1709283051380,-527.53,0.0002207,2]
[315921880,1709283051390,-174.84786921,0.00022091,2]
[315921881,1709283051399,-684.14679186,0.00022091,2]
[315921882,1709283051408,-247.5607571,0.00022091,2]
[315921883,1709283051418,-461.5531432,0.00022091,2]
[315921884,1709283051427,-1765.75,0.00022095,2]
[315921885,1709283051437,-10000.0,0.000221,2]
[315921886,1709283051450,-157.2,0.00022117,2]
[315921887,1709283051460,-164.79622058,0.00022128,2]
[315921888,1709283051469,-263732.64344946,0.00022142,2]
[315921889,1709283051479,-500.0,0.0002217,2]
[315921890,1709283051489,-646.36,0.00022191,2]
[315921891,1709283051498,-624.03,0.00022191,2]
[315921892,1709283051507,-500.0,0.00022191,2]
[315921893,1709283051517,-500.0,0.00022191,2]
[315921894,1709283051526,-500.0,0.00022191,2]
[315921895,1709283051536,-500.0,0.00022191,2]
[315921896,1709283051545,-500.0,0.00022191,2]
[315921897,1709283051555,-1130.14,0.00022191,2]
[315921898,1709283051565,-500.0,0.00022191,2]
[315921899,1709283051574,-540.37,0.00022191,2]
[315921900,1709283051584,-500.0,0.00022191,2]
[315921901,1709283051593,-500.0,0.00022191,2]
[315921902,1709283051602,-681.47,0.00022191,2]
[315921903,1709283051612,-827.07,0.00022191,2]
[315921904,1709283051621,-736.46,0.00022191,2]
[315921905,1709283051631,-500.0,0.00022191,2]
[315921906,1709283051640,-651.72,0.00022191,2]
[315921907,1709283051650,-500.0,0.00022191,2]
[315921908,1709283051659,-605.42,0.00022191,2]
[315921909,1709283051668,-500.0,0.00022191,2]
[315921910,1709283051677,-500.0,0.00022191,2]
[315921911,1709283051687,-500.0,0.00022191,2]
[315921912,1709283051696,-650.78,0.00022191,2]
[315921913,1709283051705,-500.0,0.00022191,2]
[315921914,1709283051714,-500.0,0.00022191,2]
[315921915,1709283051724,-500.0,0.00022191,2]
[315921916,1709283051734,-500.0,0.00022191,2]
[315921917,1709283051742,-1462.3,0.00022191,2]
[315921918,1709283051752,-500.0,0.00022191,2]
[315921919,1709283051761,-500.0,0.00022191,2]
[315921920,1709283051770,-500.0,0.00022191,2]
[315921921,1709283051779,-756.09,0.00022191,2]
[315921922,1709283051789,-1008.07,0.00022191,2]
[315921923,1709283051800,-505.46260417,0.00022191,2]
[315921924,1709283051809,-500.0,0.00022191,2]
[315921925,1709283051822,-545.12,0.00022191,2]
[315921926,1709283051831,-500.0,0.00022191,2]
[315921927,1709283051841,-500.0,0.00022191,2]
[315921928,1709283051850,-500.0,0.00022191,2]
[315921929,1709283051860,-500.0,0.00022191,2]
[315921930,1709283051868,-613.46,0.00022191,2]
[315921931,1709283051878,-500.0,0.00022191,2]
[315921932,1709283051887,-500.0,0.00022191,2]
[315921933,1709283051897,-801.89,0.00022191,2]
[315921934,1709283051906,-605.85,0.00022191,2]
[315921935,1709283051916,-580.79,0.00022191,2]
[315921936,1709283051925,-656.77,0.00022191,2]
[315921937,1709283051934,-547.36351879,0.00022191,2]
[315921938,1709283051943,-500.0,0.00022191,2]
[315921939,1709283051953,-762.08,0.00022191,2]
[315921940,1709283051962,-500.0,0.00022191,2]
[315921941,1709283051972,-1244.92,0.00022191,2]
[315921942,1709283051981,-500.0,0.00022191,2]
[315921943,1709283051991,-521.59,0.00022191,2]
[315921944,1709283052000,-549.0,0.00022191,2]
[315921945,1709283052010,-500.0,0.00022191,2]
[315921946,1709283052019,-1085.5,0.00022191,2]
[315921947,1709283052029,-500.0,0.00022191,2]
[315921948,1709283052038,-500.0,0.00022191,2]
[315921949,1709283052047,-500.0,0.00022191,2]
[315921950,1709283052057,-598.22,0.00022191,2]
[315921951,1709283052066,-500.0,0.00022191,2]
[315921952,1709283052076,-500.0,0.00022191,2]
[315921953,1709283052178,-500.0,0.00022191,2]
[315921954,1709283052197,-500.0,0.00022191,2]
[315921955,1709283052207,-500.0,0.00022191,2]
[315921956,1709283052217,-500.0,0.00022191,2]
[315921957,1709283052227,-500.0,0.00022191,2]
[315921958,1709283052238,-715.57,0.00022191,2]
[315921959,1709283052247,-500.0,0.00022191,2]
[315921960,1709283052257,-809.27,0.00022191,2]
[315921961,1709283052266,-224.25,0.00022191,2]
[315921962,1709283052275,-634.84,0.00022191,2]
[315921963,1709283052285,-500.0,0.00022191,2]
[315921964,1709283052294,-500.0,0.00022191,2]
[315921965,1709283052304,-500.0,0.00022191,2]
[315921966,1709283052313,-500.0,0.00022191,2]
[315921967,1709283052323,-500.0,0.00022191,2]
[315921968,1709283052332,-500.0,0.00022191,2]
[315921969,1709283052341,-828.34,0.00022191,2]
[315921970,1709283052350,-500.0,0.00022191,2]
[315921971,1709283052360,-513.33,0.00022191,2]
[315921972,1709283052369,-500.0,0.00022191,2]
[315921973,1709283052379,-500.0,0.00022191,2]
[315921974,1709283052388,-500.0,0.00022191,2]
[315921975,1709283052397,-500.0,0.00022191,2]
[315921976,1709283052406,-539.75,0.00022191,2]
[315921977,1709283052415,-520.36,0.00022191,2]
[315921978,1709283052425,-500.0,0.00022191,2]
[315921979,1709283052434,-500.0,0.00022191,2]
[315921980,1709283052443,-500.0,0.00022191,2]
[315921981,1709283052454,-500.0,0.00022191,2]
[315921982,1709283052463,-500.0,0.00022191,2]
[315921983,1709283052472,-906.04,0.00022191,2]
[315921984,1709283052481,-500.0,0.00022191,2]
[315921985,1709283052491,-500.0,0.00022191,2]
[315921986,1709283052500,-509.37167482,0.00022191,2]
[315921987,1709283052509,-500.0,0.00022191,2]
[315921988,1709283052518,-500.0,0.00022191,2]
[315921989,1709283052528,-500.0,0.00022191,2]
[315921990,1709283052537,-500.0,0.00022191,2]
[315921991,1709283052546,-500.0,0.00022191,2]
[315921992,1709283052555,-248.44504539,0.00022191,2]
[315921993,1709283052565,-500.0,0.00022191,2]
[315921994,1709283052574,-787.09,0.00022191,2]
[315921995,1709283052583,-500.0,0.00022191,2]
[315921996,1709283052592,-636.76,0.00022191,2]
[315921997,1709283052601,-500.0,0.00022191,2]
[315921998,1709283052611,-1250.9,0.00022191,2]
[315921999,1709283052620,-500.0,0.00022191,2]
[315922000,1709283052629,-1336.35,0.00022191,2]
[315922001,1709283052639,-509.13930831,0.00022191,2]
[315922002,1709283052647,-547.39,0.00022191,2]
[315922003,1709283052656,-500.0,0.00022191,2]
[315922004,1709283052665,-500.0,0.00022191,2]
[315922005,1709283052674,-500.0,0.00022191,2]
[315922006,1709283052684,-511.29669633,0.00022191,2]
[315922007,1709283052692,-1328.09,0.00022191,2]
[315922008,1709283052703,-500.0,0.00022191,2]
[315922009,1709283052712,-500.0,0.00022191,2]
[315922010,1709283052721,-500.0,0.00022191,2]
[315922011,1709283052730,-1670.4,0.00022191,2]
[315922012,1709283052739,-655.28,0.00022191,2]
[315922013,1709283052748,-500.0,0.00022191,2]
[315922014,1709283052757,-500.0,0.00022191,2]
[315922015,1709283052766,-500.0,0.00022191,2]
[315922016,1709283052776,-500.0,0.00022191,2]
[315922017,1709283052785,-10732.11,0.00022191,2]
[315922018,1709283052795,-500.0,0.00022191,2]
[315922019,1709283052804,-500.0,0.00022191,2]
[315922020,1709283052816,-1147.14,0.00022191,2]
[315922021,1709283052825,-2887.91,0.00022191,2]
[315922022,1709283052834,-500.0,0.00022191,2]
[315922023,1709283052848,-500.0,0.00022191,2]
[315922024,1709283052858,-500.0,0.00022191,2]
[315922025,1709283052867,-1105.95,0.00022191,2]
[315922026,1709283052877,-500.0,0.00022191,2]
[315922027,1709283052887,-1263.65,0.00022191,2]
[315922028,1709283052896,-500.0,0.00022191,2]
[315922029,1709283052906,-501.61,0.00022191,2]
[315922030,1709283052916,-553.56,0.00022191,2]
[315922031,1709283052926,-503.86489197,0.00022191,2]
[315922032,1709283052935,-500.0,0.00022191,2]
[315922033,1709283052945,-513.67404072,0.00022191,2]
[315922034,1709283052955,-171.05092845,0.00022191,2]
[315922035,1709283052965,-2019.91,0.00022191,2]
[315922036,1709283052975,-1797.82,0.00022191,2]
[315922037,1709283052984,-749.22,0.00022191,2]
[315922038,1709283052994,-780.02,0.00022191,2]
[315922039,1709283053003,-1851.93,0.00022191,2]
[315922040,1709283053013,-500.0,0.00022191,2]
[315922041,1709283053022,-705.59,0.00022191,2]
[315922042,1709283053032,-791.51,0.00022191,2]
[315922043,1709283053041,-500.0,0.00022191,2]
[315922044,1709283053051,-948.12,0.00022191,2]
[315922045,1709283053060,-500.0,0.00022191,2]
[315922046,1709283053070,-500.0,0.00022191,2]
[315922047,1709283053080,-323.95568489,0.00022191,2]
[315922048,1709283054295,-176.04431511,0.00022191,2]
[315922049,1709283054305,-317.96621043,0.00022191,2]
[315922050,1709283054317,-1862.84305474,0.00022191,2]
[315922051,1709283054329,-1240.9218582,0.00022191,2]
[315922052,1709283054740,-2976.38887663,0.00022191,2]
[315922053,1709283054751,-3227.81112337,0.00022191,2]
[315922054,1709283055778,-571.63458288,0.00021917,2]
[315922055,1709283055797,-178.90541712,0.00021917,2]
[315922056,1709283055807,-403.87458288,0.00022191,2]
[315922057,1709283055855,-1965.85,0.00021917,2]
[315922058,1709283055864,-24824.08429375,0.00022191,2]
[315922059,1709283055873,-500.0,0.00022191,2]
[315922060,1709283055883,-500.0,0.00022191,2]
[315922061,1709283055893,-1011.42,0.00022191,2]
[315922062,1709283055903,-500.0,0.00022191,2]
[315922063,1709283055913,-500.0,0.00022191,2]
[315922064,1709283055922,-500.0,0.00022191,2]
[315922065,1709283055932,-2835.29,0.00022191,2]
[315922066,1709283055941,-500.0,0.00022191,2]
[315922067,1709283055952,-500.0,0.00022191,2]
[315922068,1709283055962,-1016.63,0.00022191,2]
[315922069,1709283055971,-1001.42,0.00022191,2]
[315922070,1709283055981,-500.0,0.00022191,2]
[315922071,1709283055991,-500.0,0.00022191,2]
[315922072,1709283056000,-500.0,0.00022191,2]
[315922073,1709283056010,-761.67,0.00022191,2]
[315922074,1709283056029,-500.0,0.00022191,2]
[315922075,1709283056041,-2494.94,0.00022191,2]
[315922076,1709283056051,-733.83,0.00022191,2]
[315922077,1709283056061,-1129.55,0.00022191,2]
[315922078,1709283056072,-512.15789979,0.00022191,2]
[315922079,1709283056082,-1431.59,0.00022191,2]
[315922080,1709283056092,-500.0,0.00022191,2]
[315922081,1709283056103,-500.0,0.00022191,2]
[315922082,1709283056113,-500.0,0.00022191,2]
[315922083,1709283056123,-885.48,0.00022191,2]
[315922084,1709283056133,-1976.34,0.00022191,2]
[315922085,1709283056143,-5559.87,0.00022191,2]
[315922086,1709283056153,-506.3631088,0.00022191,2]
[315922087,1709283056163,-500.0,0.00022191,2]